bitfinex/quotes_BTCUSD_20230110
["timestamp","ask_amount","ask_price","bid_price","bid_amount"]
[1673394025118,4.98128453,17435.0,17434.0,0.26]
[1673394025383,0.21425396,17433.0,17431.0,0.10484862]
[1673394025655,2.55210705,17432.0,17431.0,0.10484862]
[1673394026454,2.55210705,17432.0,17431.0,0.05639495]
[1673394026704,2.55210705,17432.0,17431.0,0.16739495]
[1673394027217,2.55210705,17432.0,17431.0,0.05639495]
[1673394027464,2.55810705,17432.0,17431.0,0.16739495]
[1673394028229,2.39370705,17432.0,17431.0,0.16739495]
[1673394030787,1.87085805,17432.0,17431.0,0.16739495]
[1673394031036,0.72358921,17432.0,17431.0,0.16739495]
[1673394031294,1.87112844,17432.0,17431.0,0.16739495]
[1673394031562,0.72358921,17432.0,17431.0,0.16739495]
[1673394032107,1.87112468,17432.0,17431.0,0.16739495]
[1673394032382,0.72358921,17432.0,17431.0,0.46739495]
[1673394032628,0.72358921,17432.0,17431.0,0.76739495]
[1673394032885,0.72358921,17432.0,17431.0,1.34108495]
[1673394034381,0.72358921,17432.0,17431.0,1.3416613]
[1673394035139,0.72358921,17432.0,17431.0,1.9153513]
[1673394036659,1.87109248,17432.0,17431.0,1.9153513]
[1673394039891,1.87109248,17432.0,17431.0,0.7679713]
[1673394040142,1.87109248,17432.0,17431.0,0.16739495]
[1673394040395,2.23034148,17432.0,17431.0,0.16739495]
[1673394040641,2.22034148,17432.0,17431.0,0.16739495]
[1673394041386,1.86109248,17432.0,17431.0,0.16739495]
[1673394042136,2.22034148,17432.0,17431.0,0.16739495]
[1673394043373,1.86109248,17432.0,17431.0,0.16739495]
[1673394043898,2.22034148,17432.0,17431.0,0.1679713]
[1673394044164,2.22034148,17432.0,17431.0,0.16739495]
[1673394045156,1.86109248,17432.0,17431.0,0.74108495]
[1673394049341,1.86109248,17432.0,17431.0,0.7416613]
[1673394050883,1.86109248,17432.0,17431.0,1.6153513]
[1673394056440,1.86109248,17432.0,17431.0,2.2153513]
[1673394059970,1.86109248,17432.0,17431.0,2.38706325]
[1673394060790,1.86109248,17432.0,17431.0,2.38577646]
[1673394061043,1.86109248,17432.0,17431.0,2.21406451]
[1673394061554,1.86109248,17432.0,17431.0,2.21348816]
[1673394062323,1.15350327,17432.0,17431.0,2.21348816]
[1673394062578,1.15350327,17432.0,17431.0,3.44661468]
[1673394062831,1.15350327,17432.0,17431.0,4.43663178]
[1673394063088,1.15350327,17432.0,17431.0,4.07878558]
[1673394063343,1.15350327,17432.0,17431.0,4.63938228]
[1673394063600,1.15350327,17432.0,17431.0,4.07878558]
[1673394064399,1.15350327,17432.0,17431.0,4.25064612]
[1673394064676,1.15350327,17432.0,17431.0,3.90714177]
[1673394065125,1.15350327,17432.0,17431.0,4.25122232]
[1673394065423,1.15350327,17432.0,17431.0,4.25122207]
[1673394065683,1.15350327,17432.0,17431.0,3.90771787]
[1673394065901,1.15350327,17432.0,17431.0,4.07936193]
[1673394066196,1.15350327,17432.0,17431.0,3.90770411]
[1673394066465,1.15341283,17432.0,17431.0,3.907641]
[1673394066723,1.15341283,17432.0,17431.0,2.91762043]
[1673394066977,1.15341283,17432.0,17431.0,2.74577405]
[1673394067230,1.15341283,17432.0,17431.0,2.91762043]
[1673394068751,1.15341283,17432.0,17431.0,2.55837143]
[1673394069017,1.15341283,17432.0,17431.0,2.91762043]
[1673394069265,1.15341283,17432.0,17431.0,2.91819678]
[1673394072420,1.15341283,17432.0,17431.0,2.96414431]
[1673394072907,1.15341283,17432.0,17431.0,2.60489531]
[1673394073420,1.15341283,17432.0,17431.0,2.43304893]
[1673394073702,1.15341283,17432.0,17431.0,2.43247258]
[1673394076025,1.15341283,17432.0,17431.0,2.60431896]
[1673394076026,1.14341283,17432.0,17431.0,2.60431896]
[1673394077046,1.14341283,17432.0,17431.0,2.60489531]
[1673394079887,1.14341283,17432.0,17431.0,2.55894778]
[1673394081160,1.14341283,17432.0,17431.0,2.39434778]
[1673394081938,1.14341283,17432.0,17431.0,2.65197593]
[1673394082688,1.14341283,17432.0,17431.0,3.1684592]
[1673394083528,1.14341283,17432.0,17431.0,3.36786283]
[1673394083796,1.14341283,17432.0,17431.0,3.1684592]
[1673394084046,1.14341283,17432.0,17431.0,3.61788643]
[1673394084306,1.14341283,17432.0,17431.0,3.4184592]
[1673394085192,1.14341283,17432.0,17431.0,3.16083105]
[1673394085522,1.14341283,17432.0,17431.0,3.61789119]
[1673394085774,1.14341283,17432.0,17431.0,3.16083105]
[1673394086295,1.14341283,17432.0,17431.0,2.64377143]
[1673394087118,1.14341283,17432.0,17431.0,2.47192505]
[1673394087875,1.14341283,17432.0,17431.0,2.64377143]
[1673394093400,1.14341283,17432.0,17431.0,2.90139958]
[1673394093863,1.14341283,17432.0,17431.0,3.11864365]
[1673394095418,1.14341283,17432.0,17431.0,2.90139958]
[1673394097478,1.14341283,17432.0,17431.0,3.11693435]
[1673394098757,1.14341283,17432.0,17431.0,3.28859217]
[1673394101759,1.14341283,17432.0,17431.0,3.96488597]
[1673394102248,1.14332824,17432.0,17431.0,3.96488597]
[1673394107625,1.14332824,17432.0,17431.0,4.13663806]
[1673394107900,1.14332824,17432.0,17431.0,4.21228511]
[1673394108149,0.21425396,17433.0,17431.0,4.21228511]
[1673394108450,0.21425396,17433.0,17432.0,1.2539826]
[1673394108704,0.21425396,17433.0,17432.0,2.4012966]
[1673394109468,0.22025396,17433.0,17432.0,2.4012966]
[1673394109725,0.22025396,17433.0,17432.0,2.6512966]
[1673394110249,0.21425396,17433.0,17432.0,2.6512966]
[1673394110497,0.21925396,17433.0,17432.0,2.7682966]
[1673394112985,0.005,17433.0,17432.0,2.7682966]
[1673394113474,0.005,17433.0,17432.0,2.55276183]
[1673394115229,0.005,17433.0,17432.0,2.29479313]
[1673394115479,0.005,17433.0,17432.0,2.55276183]
[1673394115729,0.005,17433.0,17432.0,2.75179454]
[1673394116485,0.005,17433.0,17432.0,2.55276183]
[1673394116734,0.005,17433.0,17432.0,2.75147514]
[1673394116987,0.005,17433.0,17432.0,2.55276183]
[1673394117236,0.005,17433.0,17432.0,2.75147509]
[1673394117497,0.005,17433.0,17432.0,2.55276183]
[1673394117743,0.005,17433.0,17432.0,2.75147449]
[1673394117992,0.005,17433.0,17432.0,2.55276183]
[1673394118240,0.005,17433.0,17432.0,2.75147548]
[1673394118492,0.005,17433.0,17432.0,2.55276183]
[1673394119503,0.005,17433.0,17432.0,2.75147549]
[1673394120283,0.005,17433.0,17432.0,2.55276183]
[1673394120822,0.005,17433.0,17432.0,2.75147149]
[1673394121057,0.005,17433.0,17432.0,2.7514717]
[1673394121593,0.005,17433.0,17432.0,3.1107207]
[1673394121841,0.005,17433.0,17432.0,2.7514717]
[1673394122343,1.1523954,17433.0,17432.0,2.7514717]
[1673394122586,1.1523954,17433.0,17432.0,2.55276183]
[1673394123448,1.1523954,17433.0,17432.0,2.29479313]
[1673394124363,1.83165655,17433.0,17432.0,2.122814]
[1673394125444,1.83165655,17433.0,17432.0,1.822814]
[1673394128040,1.83165655,17433.0,17432.0,1.82339031]
[1673394131467,1.83165655,17433.0,17432.0,1.99536944]
[1673394131711,1.83157143,17433.0,17432.0,1.99536944]
[1673394131972,1.83157143,17433.0,17432.0,2.29536944]
[1673394133919,1.83157143,17433.0,17432.0,2.12339031]
[1673394134435,1.15231028,17433.0,17432.0,2.29536944]
[1673394134931,1.15231028,17433.0,17432.0,3.44493431]
[1673394139681,1.15231028,17433.0,17432.0,3.24458793]
[1673394140174,1.15231028,17433.0,17432.0,3.43257929]
[1673394140438,1.15231028,17433.0,17432.0,3.24458793]
[1673394141214,1.15231028,17433.0,17432.0,3.43258313]
[1673394141982,1.15231028,17433.0,17432.0,2.98661923]
[1673394147151,1.15231028,17433.0,17432.0,3.43225586]
[1673394150097,1.15231028,17433.0,17432.0,3.24458793]
[1673394152699,1.15231028,17433.0,17432.0,3.43316367]
[1673394153403,1.15231028,17433.0,17432.0,3.24458793]
[1673394153639,1.15231028,17433.0,17432.0,3.4331668]
[1673394153976,1.15231028,17433.0,17432.0,3.24458793]
[1673394155984,1.15231028,17433.0,17432.0,3.43151998]
[1673394156204,1.15231028,17433.0,17432.0,3.24458793]
[1673394156462,1.15231028,17433.0,17432.0,2.98661923]
[1673394157926,1.15231028,17433.0,17432.0,3.24458793]
[1673394158181,1.15231028,17433.0,17432.0,3.43242485]
[1673394158437,1.15231028,17433.0,17432.0,3.60440384]
[1673394158947,1.15222648,17433.0,17432.0,4.29856438]
[1673394161496,1.15222648,17433.0,17432.0,4.55654273]
[1673394161781,1.15222648,17433.0,17432.0,4.12716249]
[1673394164619,1.15222648,17433.0,17432.0,4.1577357]
[1673394168414,1.15222648,17433.0,17432.0,3.7984867]
[1673394168688,1.15222648,17433.0,17432.0,4.1577357]
[1673394168906,1.15222648,17433.0,17432.0,4.15765268]
[1673394169440,1.15222648,17433.0,17432.0,3.79840368]
[1673394170198,1.15222648,17433.0,17432.0,4.15765268]
[1673394170724,1.15222648,17433.0,17432.0,3.79840368]
[1673394172026,1.15222648,17433.0,17432.0,3.62641534]
[1673394173302,1.15222648,17433.0,17432.0,3.98566434]
[1673394173566,1.15222648,17433.0,17432.0,3.98508803]
[1673394173816,1.15222648,17433.0,17432.0,3.01652376]
[1673394174325,1.15222648,17433.0,17432.0,2.71652376]
[1673394177133,1.15222648,17433.0,17432.0,2.71707968]
[1673394190695,1.15222648,17433.0,17432.0,2.5451099]
[1673394190946,1.15222648,17433.0,17432.0,2.71707968]
[1673394191949,1.15211925,17433.0,17432.0,2.71707968]
[1673394206861,1.15211925,17433.0,17432.0,3.1431812]
[1673394209618,1.15211925,17433.0,17432.0,3.31516954]
[1673394211149,1.15211925,17433.0,17432.0,3.48719588]
[1673394211409,1.15211925,17433.0,17432.0,3.31516954]
[1673394211952,1.15211925,17433.0,17432.0,3.41644019]
[1673394212202,1.15211925,17433.0,17432.0,3.48657143]
[1673394213732,1.1520297,17433.0,17432.0,3.48657143]
[1673394214234,1.1520297,17433.0,17432.0,3.31520931]
[1673394217094,1.1520297,17433.0,17432.0,3.31465339]
[1673394217344,1.1520297,17433.0,17432.0,3.18972292]
[1673394217876,1.1520297,17433.0,17432.0,3.02159975]
[1673394218894,1.1520297,17433.0,17432.0,2.76358163]
[1673394219196,1.1520297,17433.0,17432.0,2.71655611]
[1673394219742,1.1520297,17433.0,17432.0,2.97457423]
[1673394220239,1.1520297,17433.0,17432.0,3.14031029]
[1673394220753,1.1520297,17433.0,17432.0,3.14086621]
[1673394224458,1.1520297,17433.0,17432.0,3.50011521]
[1673394224985,1.1520297,17433.0,17432.0,3.14086621]
[1673394229222,1.1520297,17433.0,17432.0,3.48482433]
[1673394229479,1.1520297,17433.0,17432.0,3.14086621]
[1673394237717,1.1520297,17433.0,17432.0,3.14089367]
[1673394237962,1.1520297,17433.0,17432.0,3.3128222]
[1673394238529,1.1520297,17433.0,17432.0,3.6720712]
[1673394238771,1.15193178,17433.0,17432.0,3.84343332]
[1673394240047,1.15193178,17433.0,17432.0,3.48418432]
[1673394240785,1.15193178,17433.0,17432.0,3.84343332]
[1673394242549,1.15193178,17433.0,17432.0,3.48418432]
[1673394243363,0.00453638,17433.0,17432.0,3.85910886]
[1673394243604,0.00453638,17433.0,17432.0,3.26744187]
[1673394243841,0.00408275,17433.0,17432.0,4.54114523]
[1673394244102,0.00408275,17433.0,17432.0,4.85957122]
[1673394245107,0.00408275,17433.0,17432.0,4.86957122]
[1673394248196,0.00408275,17433.0,17432.0,4.03518954]
[1673394248707,0.00408275,17433.0,17432.0,4.86273655]
[1673394249456,0.00408275,17433.0,17432.0,4.03518954]
[1673394249956,0.00408275,17433.0,17432.0,5.56264456]
[1673394251461,0.00408275,17433.0,17432.0,5.04668887]
[1673394251930,0.00408275,17433.0,17432.0,5.56264456]
[1673394253262,0.00629354,17435.0,17433.0,0.30149846]
[1673394253589,0.00629354,17435.0,17434.0,5.82191697]
[1673394254023,0.00629354,17435.0,17434.0,6.62931143]
[1673394254528,0.00729354,17435.0,17434.0,6.62931143]
[1673394254780,0.00729354,17435.0,17434.0,6.92633695]
[1673394255065,0.00629354,17435.0,17434.0,6.92633695]
[1673394256074,0.00629354,17435.0,17434.0,7.06359114]
[1673394256329,0.00629354,17435.0,17434.0,6.32633695]
[1673394256584,0.00629354,17435.0,17434.0,8.14688249]
[1673394257125,0.00629354,17435.0,17434.0,7.71831143]
[1673394257691,0.00629354,17435.0,17434.0,8.19375626]
[1673394258197,0.00629354,17435.0,17434.0,7.76533695]
[1673394258778,0.00629354,17435.0,17434.0,8.19375403]
[1673394259308,0.00629354,17435.0,17434.0,7.20705403]
[1673394263361,0.00629354,17435.0,17434.0,7.54966695]
[1673394263617,0.00629354,17435.0,17434.0,7.50264143]
[1673394263863,0.00498296,17435.0,17434.0,7.50264143]
[1673394264608,0.00498296,17435.0,17434.0,6.94204473]
[1673394264863,0.00498296,17435.0,17434.0,7.50264143]
[1673394265184,9.6e-07,17435.0,17434.0,6.94204473]
[1673394265411,0.00681234,17436.0,17434.0,8.23010482]
[1673394265676,0.00681234,17436.0,17435.0,1.2197787]
[1673394265930,0.00681234,17436.0,17435.0,3.59818065]
[1673394266426,0.00681234,17436.0,17435.0,3.77617997]
[1673394266683,0.00681234,17436.0,17435.0,3.91517997]
[1673394266978,0.00681234,17436.0,17435.0,3.99388001]
[1673394267939,0.00681234,17436.0,17435.0,3.80484541]
[1673394268194,0.00681234,17436.0,17435.0,2.91084557]
[1673394269207,0.00681234,17436.0,17435.0,3.08215942]
[1673394269461,0.00681234,17436.0,17435.0,3.38215942]
[1673394271481,0.00681234,17436.0,17435.0,3.79272586]
[1673394272992,0.72284476,17436.0,17435.0,2.91084557]
[1673394273249,0.72284476,17436.0,17435.0,2.55166357]
[1673394274050,0.72284476,17436.0,17435.0,2.91091257]
[1673394274522,0.72284476,17436.0,17435.0,3.21091257]
[1673394275782,0.72284476,17436.0,17435.0,2.85166357]
[1673394276024,0.72284476,17436.0,17435.0,3.21091257]
[1673394276552,0.17141234,17436.0,17435.0,3.21091257]
[1673394277550,0.17141234,17436.0,17435.0,3.38222642]
[1673394277806,0.17141234,17436.0,17435.0,3.02297742]
[1673394278060,0.17141234,17436.0,17435.0,2.85166357]
[1673394279073,0.17141234,17436.0,17435.0,3.02297742]
[1673394279579,0.17141234,17436.0,17435.0,3.43708404]
[1673394279849,0.17141234,17436.0,17435.0,3.79633304]
[1673394280653,0.17141234,17436.0,17435.0,3.43708404]
[1673394281889,0.17141234,17436.0,17435.0,3.27992735]
[1673394282399,0.17141234,17436.0,17435.0,3.02297742]
[1673394286762,0.17130636,17436.0,17435.0,3.02297742]
[1673394287293,0.78224761,17436.0,17435.0,2.144616]
[1673394290125,0.78224761,17436.0,17435.0,2.31592985]
[1673394291154,0.61764761,17436.0,17435.0,2.31592985]
[1673394291667,0.61764761,17436.0,17435.0,2.144616]
[1673394293236,0.61764761,17436.0,17435.0,2.31592985]
[1673394293527,0.00670636,17436.0,17435.0,2.31592985]
[1673394296463,0.00670636,17436.0,17435.0,2.57287978]
[1673394296719,0.00670636,17436.0,17435.0,3.68936192]
[1673394296972,0.00670636,17436.0,17435.0,4.03196124]
[1673394297218,0.00670636,17436.0,17435.0,3.86064739]
[1673394300051,0.00670636,17436.0,17435.0,3.50139839]
[1673394300534,0.00670636,17436.0,17435.0,3.45437287]
[1673394301542,0.00670636,17436.0,17435.0,3.81362187]
[1673394301789,0.00670636,17436.0,17435.0,4.2403559]
[1673394302042,0.00670636,17436.0,17435.0,3.98270502]
[1673394303472,0.00670636,17436.0,17435.0,3.62345602]
[1673394303734,0.00670636,17436.0,17435.0,3.65276008]
[1673394304236,0.00670636,17436.0,17435.0,3.48204184]
[1673394304981,0.00670636,17436.0,17435.0,3.91045892]
[1673394305236,0.00670636,17436.0,17435.0,3.48204184]
[1673394305456,0.00670636,17436.0,17435.0,3.65276008]
[1673394305972,0.00670636,17436.0,17435.0,3.48209476]
[1673394306978,0.00670636,17436.0,17435.0,3.84134376]
[1673394307751,0.00670636,17436.0,17435.0,4.01200908]
[1673394309063,0.00670636,17436.0,17435.0,3.224343]
[1673394309308,0.00670636,17436.0,17435.0,3.48211178]
[1673394309561,0.00670636,17436.0,17435.0,3.65276008]
[1673394309842,0.00670636,17436.0,17435.0,3.91057373]
[1673394310074,0.00670636,17436.0,17435.0,3.65276008]
[1673394310322,0.00670636,17436.0,17435.0,4.01200908]
[1673394310819,0.00670636,17436.0,17435.0,3.65276008]
[1673394311333,0.00670636,17436.0,17435.0,3.66940976]
[1673394312882,0.00670636,17436.0,17435.0,3.31016076]
[1673394313374,0.00670636,17436.0,17435.0,3.65395573]
[1673394313886,0.00670636,17436.0,17435.0,4.01320473]
[1673394314125,0.00670636,17436.0,17435.0,3.66940976]
[1673394314423,0.00670636,17436.0,17435.0,3.31016076]
[1673394316961,0.00670636,17436.0,17435.0,3.66940976]
[1673394317223,0.00670636,17436.0,17435.0,3.31016076]
[1673394319418,0.00670636,17436.0,17435.0,3.66940976]
[1673394319925,0.00670636,17436.0,17435.0,3.67076733]
[1673394320423,0.00670636,17436.0,17435.0,3.31151833]
[1673394321180,0.00670636,17436.0,17435.0,4.42213546]
[1673394321436,0.00603573,17436.0,17435.0,5.53625143]
[1673394321693,0.00603573,17436.0,17435.0,4.92862921]
[1673394321946,0.00603573,17436.0,17435.0,5.48922591]
[1673394325132,0.00603573,17436.0,17435.0,4.97327022]
[1673394325365,0.00603573,17436.0,17435.0,3.8144749]
[1673394325612,0.00603573,17436.0,17435.0,4.24401943]
[1673394325868,0.00603573,17436.0,17435.0,4.58766319]
[1673394326659,0.00603573,17436.0,17435.0,4.22841419]
[1673394326902,0.00603573,17436.0,17435.0,4.58766319]
[1673394327160,0.00603573,17436.0,17435.0,4.22841419]
[1673394327421,0.00603573,17436.0,17435.0,4.05661931]
[1673394327930,0.64102764,17436.0,17435.0,3.3336889]
[1673394328707,1.78818089,17436.0,17435.0,3.3336889]
[1673394328975,0.64102764,17436.0,17435.0,3.3336889]
[1673394330755,1.78818092,17436.0,17435.0,3.3336889]
[1673394331525,1.78818092,17436.0,17435.0,3.17469182]
[1673394331774,1.78818092,17436.0,17435.0,3.3273108]
[1673394332027,1.78818092,17436.0,17435.0,3.17469182]
[1673394332772,1.78818092,17436.0,17435.0,3.32822778]
[1673394333573,0.64102764,17436.0,17435.0,3.32822778]
[1673394333832,0.64102764,17436.0,17435.0,3.50002343]
[1673394334092,0.64102764,17436.0,17435.0,3.32821246]
[1673394336357,1.78817826,17436.0,17435.0,3.32821246]
[1673394339701,1.78817826,17436.0,17435.0,3.1746765]
[1673394341200,1.95277826,17436.0,17435.0,3.1746765]
[1673394341706,1.95277826,17436.0,17435.0,2.91692685]
[1673394343218,0.80562764,17436.0,17435.0,3.33438146]
[1673394343967,0.80554569,17436.0,17435.0,3.33438146]
[1673394345968,0.17055378,17436.0,17435.0,3.50619243]
[1673394346184,0.17055378,17436.0,17435.0,3.86544143]
[1673394346398,0.17055378,17436.0,17435.0,3.50619243]
[1673394347159,0.17055378,17436.0,17435.0,3.67798731]
[1673394347404,0.17055378,17436.0,17435.0,4.71208879]
[1673394349920,0.17055378,17436.0,17435.0,4.54027082]
[1673394350954,0.17055378,17436.0,17435.0,4.71200792]
[1673394351181,0.00595378,17436.0,17435.0,4.71200792]
[1673394352436,0.00595378,17436.0,17435.0,4.35275892]
[1673394355237,0.00595378,17436.0,17435.0,4.18095451]
[1673394356512,0.00595378,17436.0,17435.0,4.54020351]
[1673394357804,0.00595378,17436.0,17435.0,4.96974804]
[1673394358060,0.00595378,17436.0,17435.0,4.54020351]
[1673394359218,0.00595378,17436.0,17435.0,4.96974804]
[1673394359982,0.00595378,17436.0,17435.0,4.71200792]
[1673394362687,0.00595378,17436.0,17435.0,4.35275892]
[1673394363198,0.00595378,17436.0,17435.0,4.61055111]
[1673394363708,0.00595378,17436.0,17435.0,4.61055931]
[1673394363941,0.00595378,17436.0,17435.0,4.35275892]
[1673394364697,0.00595378,17436.0,17435.0,4.71200792]
[1673394364941,0.00595378,17436.0,17435.0,4.36836416]
[1673394371369,0.00595378,17436.0,17435.0,4.00911516]
[1673394371621,0.00595378,17436.0,17435.0,4.36836416]
[1673394372638,0.52388165,17436.0,17435.0,4.00911516]
[1673394372880,1.67101355,17436.0,17435.0,4.18130735]
[1673394373133,1.67101355,17436.0,17435.0,4.35324221]
[1673394373382,1.67101355,17436.0,17435.0,4.00939587]
[1673394373626,1.67101355,17436.0,17435.0,4.18130735]
[1673394373861,1.67101355,17436.0,17435.0,4.00939576]
[1673394374120,1.67101355,17436.0,17435.0,4.18130735]
[1673394375512,1.67092896,17436.0,17435.0,4.18130735]
[1673394376270,0.00586919,17436.0,17435.0,4.18130735]
[1673394378839,0.00586919,17436.0,17435.0,4.61085188]
[1673394379089,0.00586919,17436.0,17435.0,4.35296114]
[1673394379865,0.00586919,17436.0,17435.0,4.18131837]
[1673394380879,0.00586919,17436.0,17435.0,4.35296114]
[1673394381140,0.00586919,17436.0,17435.0,4.61087739]
[1673394382196,0.00586919,17436.0,17435.0,4.35296114]
[1673394389517,0.00586919,17436.0,17435.0,4.181374]
[1673394389771,1.15299536,17436.0,17435.0,4.181374]
[1673394395208,0.00586919,17436.0,17435.0,4.35296114]
[1673394395430,0.00586919,17436.0,17435.0,4.36836416]
[1673394395954,0.00577393,17436.0,17435.0,4.36836416]
[1673394396209,0.00577393,17436.0,17435.0,4.00911516]
[1673394400747,0.00577393,17436.0,17435.0,4.05614068]
[1673394404774,0.00577393,17436.0,17435.0,4.3997305]
[1673394405263,0.00577393,17436.0,17435.0,4.7589795]
[1673394405513,0.00577393,17436.0,17435.0,4.3997305]
[1673394406249,0.00577393,17436.0,17435.0,4.35270498]
[1673394408019,0.00577393,17436.0,17435.0,4.3997305]
[1673394408522,0.00577393,17436.0,17435.0,4.7589795]
[1673394409278,0.00577393,17436.0,17435.0,4.41538968]
[1673394409539,0.00577393,17436.0,17435.0,4.75895714]
[1673394411062,0.00577393,17436.0,17435.0,4.41538968]
[1673394415492,0.00577393,17436.0,17435.0,4.22791332]
[1673394416036,0.00577393,17436.0,17435.0,4.65745785]
[1673394416281,0.00577393,17436.0,17435.0,4.39974073]
[1673394416542,0.00577393,17436.0,17435.0,4.65745273]
[1673394416853,0.00577393,17436.0,17435.0,4.39974073]
[1673394417103,0.00577393,17436.0,17435.0,4.65745505]
[1673394417326,0.00577393,17436.0,17435.0,3.9701962]
[1673394417597,0.00577393,17436.0,17435.0,4.39974073]
[1673394417864,0.00566276,17436.0,17435.0,4.39974073]
[1673394419977,0.00566276,17436.0,17435.0,4.58718252]
[1673394420239,0.00566276,17436.0,17435.0,4.65747805]
[1673394420486,0.00566276,17436.0,17435.0,4.75898973]
[1673394420737,0.00566276,17436.0,17435.0,4.74093673]
[1673394421253,0.00566276,17436.0,17435.0,4.39974073]
[1673394422741,0.00566276,17436.0,17435.0,4.39843294]
[1673394423235,1.152788,17436.0,17435.0,4.2266221]
[1673394424010,1.152788,17436.0,17435.0,4.05483683]
[1673394424263,1.152788,17436.0,17435.0,4.22664044]
[1673394424508,1.152788,17436.0,17435.0,4.18092271]
[1673394425022,1.15278765,17436.0,17435.0,4.18092271]
[1673394425277,1.15278765,17436.0,17435.0,4.22664044]
[1673394425530,0.00566276,17436.0,17435.0,4.39845128]
[1673394426845,0.00566276,17436.0,17435.0,4.35273355]
[1673394430431,0.00566276,17436.0,17435.0,4.61032443]
[1673394430685,0.00566276,17436.0,17435.0,4.18079912]
[1673394431212,1.1527722,17436.0,17435.0,4.18079912]
[1673394431521,0.00566276,17436.0,17435.0,4.18079912]
[1673394431736,0.00566276,17436.0,17435.0,4.18077613]
[1673394432477,0.00566276,17436.0,17435.0,4.35273355]
[1673394434277,0.00066276,17436.0,17435.0,4.35273355]
[1673394435839,0.00066276,17436.0,17435.0,4.18073004]
[1673394436113,1.14778466,17436.0,17435.0,4.3524246]
[1673394436349,1.14778466,17436.0,17435.0,4.00880621]
[1673394436847,1.14778466,17436.0,17435.0,4.18073004]
[1673394437590,0.00066276,17436.0,17435.0,4.35273355]
[1673394439184,0.00066276,17436.0,17435.0,4.00911516]
[1673394439425,0.00066276,17436.0,17435.0,4.14016733]
[1673394439685,0.00066276,17436.0,17435.0,4.66401633]
[1673394440708,0.00066276,17436.0,17435.0,4.70973406]
[1673394441767,0.00066276,17436.0,17435.0,4.14913736]
[1673394442600,0.00066276,17436.0,17435.0,4.21893533]
[1673394443332,0.00066276,17436.0,17435.0,4.57818433]
[1673394444387,0.00723166,17437.0,17435.0,4.57818433]
[1673394444388,0.00289442,17437.0,17436.0,0.9042659]
[1673394444652,0.00289442,17437.0,17436.0,3.93605625]
[1673394445501,0.00289442,17437.0,17436.0,4.18605625]
[1673394445994,0.00289442,17437.0,17436.0,4.66928258]
[1673394446487,0.00289442,17437.0,17436.0,3.98488025]
[1673394446729,0.00289442,17437.0,17436.0,4.32807297]
[1673394447506,0.00289442,17437.0,17436.0,4.68732197]
[1673394447768,0.00289442,17437.0,17436.0,4.32807297]
[1673394447985,0.00289442,17437.0,17436.0,4.1563574]
[1673394449463,0.00289442,17437.0,17436.0,4.5156064]
[1673394449725,0.00289442,17437.0,17436.0,4.68732197]
[1673394450735,0.00289442,17437.0,17436.0,4.51540104]
[1673394452837,0.00289442,17437.0,17436.0,4.15615204]
[1673394453526,0.00289442,17437.0,17436.0,4.51540104]
[1673394453781,0.00289442,17437.0,17436.0,4.56111877]
[1673394454029,0.00289442,17437.0,17436.0,4.7330397]
[1673394454302,0.00289442,17437.0,17436.0,4.7430397]
[1673394455806,0.00289442,17437.0,17436.0,5.00021481]
[1673394456060,0.00289442,17437.0,17436.0,4.5711792]
[1673394456556,0.00289442,17437.0,17436.0,4.7430397]
[1673394456806,0.00289442,17437.0,17436.0,4.3837907]
[1673394457065,0.00289442,17437.0,17436.0,4.211917]
[1673394458048,0.00289442,17437.0,17436.0,4.571166]
[1673394459802,0.00289442,17437.0,17436.0,4.52544827]
[1673394460053,0.00289442,17437.0,17436.0,4.16619927]
[1673394460561,0.00289442,17437.0,17436.0,3.99437035]
[1673394462072,0.00289442,17437.0,17436.0,4.35361935]
[1673394462590,0.00289442,17437.0,17436.0,3.99437035]
[1673394463627,0.00289442,17437.0,17436.0,3.83466539]
[1673394463885,0.00289442,17437.0,17436.0,3.57750348]
[1673394465664,0.00289442,17437.0,17436.0,3.83466539]
[1673394466176,0.00289442,17437.0,17436.0,3.96710046]
[1673394466428,0.00289442,17437.0,17436.0,3.83466539]
[1673394466679,0.00289442,17437.0,17436.0,3.57750348]
[1673394466932,0.00289442,17437.0,17436.0,3.83466539]
[1673394467189,0.00289442,17437.0,17436.0,3.57750348]
[1673394467441,1.14998174,17437.0,17436.0,3.57750348]
[1673394468095,1.81226672,17437.0,17436.0,2.67750348]
[1673394468244,1.14998174,17437.0,17436.0,1.847052]
[1673394469007,1.14998174,17437.0,17436.0,2.147052]
[1673394470039,1.14998174,17437.0,17436.0,1.847052]
[1673394470289,1.14998174,17437.0,17436.0,2.147052]
[1673394471308,1.14998174,17437.0,17436.0,1.847052]
[1673394471562,1.79983844,17437.0,17436.0,1.547052]
[1673394471817,1.79983844,17437.0,17436.0,0.973526]
[1673394472080,2.15908744,17437.0,17436.0,0.973526]
[1673394472336,2.32368744,17437.0,17436.0,0.973526]
[1673394475813,2.32368744,17437.0,17436.0,0.4]
[1673394475814,2.65954157,17437.0,17436.0,0.4]
[1673394476055,4.07039202,17437.0,17436.0,0.4]
[1673394476304,3.60626339,17437.0,17436.0,0.4]
[1673394477083,3.60626339,17437.0,17436.0,0.26]
[1673394477593,3.60626339,17437.0,17436.0,0.345]
[1673394477864,0.05580933,17435.0,17434.0,0.57359]
[1673394478129,1.72554565,17435.0,17434.0,0.57359]
[1673394478672,2.39582581,17435.0,17434.0,0.57359]
[1673394478886,2.39582581,17435.0,17434.0,0.82359]
[1673394479199,2.39682581,17435.0,17434.0,0.96459]
[1673394479450,2.03757681,17435.0,17434.0,0.96459]
[1673394480236,2.03757681,17435.0,17434.0,0.96530625]
[1673394480237,0.89048949,17435.0,17434.0,0.96530625]
[1673394480502,0.89048949,17435.0,17434.0,0.96459]
[1673394481322,0.89048949,17435.0,17434.0,1.26459]
[1673394481565,0.89048949,17435.0,17434.0,0.96459]
[1673394482313,0.89048949,17435.0,17434.0,1.538181]
[1673394482564,0.89048949,17435.0,17434.0,1.838181]
[1673394483068,0.89048949,17435.0,17434.0,1.538181]
[1673394484343,1.24973849,17435.0,17434.0,1.538181]
[1673394485114,0.89048949,17435.0,17434.0,1.538181]
[1673394487476,0.22020933,17435.0,17434.0,1.538181]
[1673394489546,0.1644,17435.0,17434.0,1.538181]
[1673394491287,0.001,17435.0,17434.0,1.838181]
[1673394492570,0.001,17435.0,17434.0,1.26459]
[1673394492826,0.6525603,17435.0,17434.0,1.26459]
[1673394493048,1.0118093,17435.0,17434.0,1.26459]
[1673394493298,0.6525603,17435.0,17434.0,1.26459]
[1673394495560,0.6525603,17435.0,17434.0,1.838181]
[1673394498088,0.001,17435.0,17434.0,2.138181]
[1673394498334,0.001,17435.0,17434.0,1.838181]
[1673394500831,0.001,17435.0,17434.0,1.264591]
[1673394500832,1.76175544,17435.0,17434.0,1.264591]
[1673394502811,1.76175544,17435.0,17434.0,0.964591]
[1673394503342,2.88329216,17435.0,17434.0,0.391]
[1673394503610,3.65676477,17435.0,17434.0,0.391]
[1673394504170,3.22367705,17435.0,17434.0,0.391]